fUST/lending_fUST_20251031
["ID","MTS","AMOUNT","RATE_DAILY","PERIOD"]
[392716401,1761853846642,-1000.0,0.00036521,5]
[392716402,1761853846652,-1000.0,0.00036521,5]
[392716403,1761853846661,-1000.0,0.00036521,5]
[392716404,1761853846671,-1000.0,0.00036521,5]
[392716405,1761853846680,-911.37519729,0.00036521,5]
[392716406,1761853846690,-1000.0,0.00036521,5]
[392716407,1761853846699,-1000.0,0.00036521,5]
[392716408,1761853846708,-1000.0,0.00036521,5]
[392716409,1761853846718,-1000.0,0.00036521,5]
[392716410,1761853846727,-322.0,0.00036638,2]
[392716411,1761853846736,-300.0,0.00036697,30]
[392716412,1761853846745,-300.0,0.00036697,30]
[392716413,1761853846754,-300.0,0.00036697,30]
[392716414,1761853846763,-300.0,0.00036697,30]
[392716415,1761853846772,-300.0,0.00036697,30]
[392716416,1761853846781,-300.0,0.00036697,30]
[392716417,1761853846790,-300.0,0.00036697,30]
[392716418,1761853846799,-300.0,0.00036697,30]
[392716419,1761853846808,-300.0,0.00036697,30]
[392716420,1761853846818,-300.0,0.00036697,30]
[392716421,1761853846827,-300.0,0.00036697,30]
[392716422,1761853846835,-300.0,0.00036697,30]
[392716423,1761853846845,-300.0,0.00036697,30]
[392716424,1761853846854,-300.0,0.00036697,30]
[392716425,1761853846867,-600.0,0.00036808,30]
[392716426,1761853846876,-1500.0,0.00036968,5]
[392716427,1761853846885,-1500.0,0.00036968,5]
[392716428,1761853846894,-1500.0,0.00036968,5]
[392716429,1761853846903,-1500.0,0.00036968,5]
[392716430,1761853846913,-1500.0,0.00036968,5]
[392716431,1761853846923,-1500.0,0.00036968,5]
[392716432,1761853846932,-1500.0,0.00037068,5]
[392716433,1761853846941,-1000.0,0.00037068,5]
[392716434,1761853846950,-602.74739443,0.00037068,5]
[392716435,1761853846959,-1500.0,0.00037068,5]
[392716436,1761853846968,-1500.0,0.00037068,5]
[392716437,1761853846977,-1500.0,0.00037068,5]
[392716438,1761853846987,-485.72137606,0.00037068,5]
[392716439,1761853846996,-1500.0,0.00037068,5]
[392716440,1761853847005,-1515.61085044,0.00037068,5]
[392716441,1761853847014,-409.50755455,0.00037073,2]
[392716442,1761853847023,-160.0,0.00037236,2]
[392716443,1761853847031,-1061.7642302,0.00037427,2]
[392716444,1761853847041,-150.0,0.00037435,2]
[392716445,1761853847050,-2000.0,0.00037516,5]
[392716446,1761853847060,-2000.0,0.00037516,5]
[392716447,1761853847070,-2000.0,0.00037516,5]
[392716448,1761853847080,-2000.0,0.00037516,5]
[392716449,1761853847091,-2000.0,0.00037516,5]
[392716450,1761853847101,-1670.21961139,0.00037516,5]
[392716451,1761853847111,-168.0,0.00037602,2]
[392716452,1761853847120,-346.96841231,0.00037616,5]
[392716453,1761853847129,-2000.0,0.00037616,5]
[392716454,1761853847139,-2000.0,0.00037616,5]
[392716455,1761853847148,-2000.0,0.00037616,5]
[392716456,1761853847157,-2000.0,0.00037616,5]
[392716457,1761853847166,-260.0,0.00037784,2]
[392716458,1761853847175,-944.04423326,0.00037838,2]
[392716459,1761853847184,-2500.0,0.00038064,5]
[392716460,1761853847192,-1155.49220631,0.00038064,5]
[392716461,1761853847203,-2500.0,0.00038064,5]
[392716462,1761853847214,-2500.0,0.00038064,5]
[392716463,1761853847223,-2500.0,0.00038064,5]
[392716464,1761853847232,-263.8838646,0.00038164,5]
[392716465,1761853847241,-2500.0,0.00038164,5]
[392716466,1761853847250,-2500.0,0.00038164,5]
[392716467,1761853847259,-2500.0,0.00038164,5]
[392716468,1761853847268,-548.0,0.00038259,2]
[392716469,1761853847277,-360.0,0.00038332,2]
[392716470,1761853847286,-168.0,0.00038578,2]
[392716471,1761853847295,-3000.0,0.00038612,5]
[392716472,1761853847304,-3000.0,0.00038612,5]
[392716473,1761853847313,-3000.0,0.00038612,5]
[392716474,1761853847323,-3000.0,0.00038612,5]
[392716475,1761853847332,-168.0,0.0003871,2]
[392716476,1761853847342,-3000.0,0.00038712,5]
[392716477,1761853847351,-3000.0,0.00038712,5]
[392716478,1761853847360,-1486.90563717,0.00038712,5]
[392716479,1761853847370,-168.0,0.00038836,2]
[392716480,1761853847379,-460.0,0.0003888,2]
[392716481,1761853847387,-168.0,0.00038881,2]
[392716482,1761853847396,-1003.92989492,0.000389,120]
[392716483,1761853847406,-1887.58085369,0.0003905,2]
[392716484,1761853847415,-168.0,0.00039083,2]
[392716485,1761853847427,-168.0,0.00039149,2]
[392716486,1761853847515,-3000.0,0.0003916,5]
[392716487,1761853847525,-3000.0,0.0003916,5]
[392716488,1761853847534,-3000.0,0.0003916,5]
[392716489,1761853847543,-3001.64663513,0.0003916,5]
[392716490,1761853847553,-503.0,0.00039355,120]
[392716491,1761853847562,-560.0,0.00039428,2]
[392716492,1761853847571,-168.0,0.00039448,2]
[392716493,1761853847582,-1678.30085913,0.00039495,2]
[392716494,1761853847591,-168.0,0.00039529,2]
[392716495,1761853847600,-171.668234,0.00039654,2]
[392716496,1761853847610,-168.0,0.00039678,2]
[392716497,1761853847620,-660.0,0.00039976,2]
[392716498,1761853847630,-15000.0,0.0004,120]
[392716499,1761853847639,-403.80339554,0.0004,120]
[392716500,1761853847649,-168.0,0.00040003,2]
[392716501,1761853847658,-168.0,0.00040342,2]
[392716502,1761853847667,-504.0,0.00040355,120]
[392716503,1761853847676,-168.0,0.00040358,2]
[392716504,1761853847685,-3056.1113033,0.00040391,2]
[392716505,1761853847694,-720.0,0.00040488,90]
[392716506,1761853847703,-760.0,0.00040524,2]
[392716507,1761853847713,-4204.7894617,0.00040546,2]
[392716508,1761853847722,-168.0,0.00040627,2]
[392716509,1761853847732,-2949.34508389,0.00040672,2]
[392716510,1761853847742,-2000.0,0.000409,120]
[392716511,1761853847751,-150.0,0.00040943,2]
[392716512,1761853847759,-432.66240788,0.0004104,7]
[392716513,1761853847770,-8776.0,0.00041132,120]
[392716514,1761853847778,-984.0,0.00041133,2]
[392716515,1761853847787,-633.0,0.00041133,2]
[392716516,1761853847796,-2622.34509238,0.00041152,2]
[392716517,1761853847805,-681.9106045,0.00041405,2]
[392716518,1761853847814,-938.2153459,0.00041563,2]
[392716519,1761853847823,-2000.0,0.000419,120]
[392716520,1761853847833,-153.0,0.00042178,30]
[392716521,1761853847843,-153.0,0.00042178,30]
[392716522,1761853847853,-150.0,0.0004227,30]
[392716523,1761853847862,-153.0,0.00042653,30]
[392716524,1761853847871,-153.0,0.00042653,30]
[392716525,1761853847880,-153.0,0.00042653,30]
[392716526,1761853847889,-153.0,0.00042653,30]
[392716527,1761853847900,-153.0,0.00042653,30]
[392716528,1761853847909,-153.0,0.00042653,30]
[392716529,1761853847918,-2000.0,0.000429,120]
[392716530,1761853847927,-507.0,0.00043355,120]
[392716531,1761853847936,-2000.0,0.000439,120]
[392716532,1761853847945,-984.0,0.00044133,2]
[392716533,1761853847955,-633.0,0.00044133,2]
[392716534,1761853847965,-150.0,0.0004435,2]
[392716535,1761853847974,-864.0,0.00044537,90]
[392716536,1761853847983,-31039.52064134,0.0004455,60]
[392716537,1761853847992,-1618.78,0.00044658,2]
[392716538,1761853848002,-2000.0,0.000449,120]
[392716539,1761853848011,-151.0,0.00045108,7]
[392716540,1761853848021,-151.0,0.00045108,7]
[392716541,1761853848030,-151.0,0.00045108,120]
[392716542,1761853848039,-151.0,0.00045108,120]
[392716543,1761853848048,-151.0,0.00045108,120]
[392716544,1761853848057,-224.446364,0.00045108,120]
[392716545,1761853848066,-169.517062,0.00045108,120]
[392716546,1761853848076,-195.236453,0.00045108,120]
[392716547,1761853848085,-195.236453,0.00045108,120]
[392716548,1761853848095,-151.0,0.00045108,120]
[392716549,1761853848104,-195.236453,0.00045108,120]
[392716550,1761853848113,-151.0,0.00045108,120]
[392716551,1761853848123,-195.236453,0.00045108,120]
[392716552,1761853848132,-151.0,0.00045108,2]
[392716553,1761853848141,-151.0,0.00045108,120]
[392716554,1761853848152,-151.0,0.00045108,2]
[392716555,1761853848162,-151.0,0.00045108,120]
[392716556,1761853848171,-268.216747,0.00045108,2]
[392716557,1761853848181,-151.0,0.00045108,120]
[392716558,1761853848190,-4794.09715861,0.00045109,2]
[392716559,1761853848199,-500.0,0.00045399,30]
[392716560,1761853848208,-2000.0,0.000459,120]
[392716561,1761853848218,-150.0,0.00046113,30]
[392716562,1761853848227,-171.668234,0.00046143,2]
[392716563,1761853848236,-510.0,0.00046355,120]
[392716564,1761853848245,-2000.0,0.000469,120]
[392716565,1761853848254,-169.61,0.00047761,2]
[392716566,1761853848263,-2000.0,0.000479,120]
[392716567,1761853848273,-153.619015,0.00048353,4]
[392716568,1761853848283,-155.123184,0.00048353,4]
[392716569,1761853848292,-2000.0,0.000489,120]
[392716570,1761853848302,-151.0,0.000489,30]
[392716571,1761853848310,-1000.0,0.00048991,90]
[392716572,1761853848320,-2000.0,0.000499,120]
[392716573,1761853848329,-150.0,0.00049956,30]
[392716574,1761853848338,-1728.91898188,0.00049959,7]
[392716575,1761853848349,-1500.0,0.0005,120]
[392716576,1761853848358,-151.0,0.000508,23]
[392716577,1761853848368,-2000.0,0.000509,120]
[392716578,1761853848377,-1500.0,0.00051,120]
[392716579,1761853848385,-159.36862717,0.00051151,120]
[392716580,1761853848395,-212.01,0.00051173,2]
[392716581,1761853848404,-159.36862717,0.00051616,120]
[392716582,1761853848413,-2000.0,0.000519,120]
[392716583,1761853848423,-179.35735057,0.00051954,52]
[392716584,1761853848436,-1500.0,0.00052,120]
[392716585,1761853848445,-500.0,0.00052054,120]
[392716586,1761853848455,-500.0,0.00052054,120]
[392716587,1761853848464,-500.0,0.00052054,120]
[392716588,1761853848474,-500.0,0.00052054,120]
[392716589,1761853848483,-1000.0,0.00052054,2]
[392716590,1761853848492,-500.0,0.00052054,120]
[392716591,1761853848501,-500.0,0.00052054,120]
[392716592,1761853848511,-500.0,0.00052054,120]
[392716593,1761853848521,-500.0,0.00052054,120]
[392716594,1761853848533,-500.0,0.00052054,120]
[392716595,1761853848543,-500.0,0.00052054,120]
[392716596,1761853848552,-614.0,0.00052054,120]
[392716597,1761853848561,-500.0,0.00052054,120]
[392716598,1761853848570,-500.0,0.00052054,120]
[392716599,1761853848580,-558.55,0.00052054,120]
[392716600,1761853848590,-500.0,0.00052054,120]
[392716601,1761853848599,-500.0,0.00052054,120]
[392716602,1761853848608,-500.0,0.00052054,120]
[392716603,1761853848618,-500.0,0.00052054,120]
[392716604,1761853848628,-500.0,0.00052054,120]
[392716605,1761853848636,-500.0,0.00052054,120]
[392716606,1761853848646,-498.47993481,0.00052054,120]
[392716607,1761853848655,-500.0,0.00052054,120]
[392716608,1761853848664,-648.26,0.00052054,120]
[392716609,1761853848673,-500.0,0.00052054,120]
[392716610,1761853848682,-514.6,0.00052054,120]
[392716611,1761853848692,-500.3100742,0.00052054,120]
[392716612,1761853848701,-500.0,0.00052054,120]
[392716613,1761853848710,-500.0,0.00052054,120]
[392716614,1761853848719,-500.0,0.00052054,120]
[392716615,1761853848728,-500.0,0.00052054,2]
[392716616,1761853848737,-500.0,0.00052054,120]
[392716617,1761853848747,-500.0,0.00052054,120]
[392716618,1761853848756,-500.0,0.00052054,120]
[392716619,1761853848765,-490.37693125,0.00052054,120]
[392716620,1761853848774,-500.0,0.00052054,120]
[392716621,1761853848783,-498.27296752,0.00052054,120]
[392716622,1761853848792,-500.0,0.00052054,120]
[392716623,1761853848802,-500.0,0.00052054,120]
[392716624,1761853848811,-500.0,0.00052054,120]
[392716625,1761853848820,-500.0,0.00052054,120]
[392716626,1761853848829,-500.0,0.00052054,120]
[392716627,1761853848838,-500.0,0.00052054,120]
[392716628,1761853848847,-500.0,0.00052054,120]
[392716629,1761853848855,-552.93,0.00052054,120]
[392716630,1761853848864,-500.0,0.00052054,120]
[392716631,1761853848873,-500.0,0.00052054,120]
[392716632,1761853848882,-561.82207231,0.00052054,120]
[392716633,1761853848891,-500.0,0.00052054,120]
[392716634,1761853848903,-511.46,0.00052054,120]
[392716635,1761853848916,-500.0,0.00052054,120]
[392716636,1761853848926,-615.0,0.00052054,120]
[392716637,1761853848935,-500.0,0.00052054,120]
[392716638,1761853848945,-527.78370219,0.00052054,120]
[392716639,1761853848954,-500.0,0.00052054,120]
[392716640,1761853848963,-500.0,0.00052054,120]
[392716641,1761853848972,-559.96648976,0.00052054,120]
[392716642,1761853848980,-500.0,0.00052054,120]
[392716643,1761853848990,-500.0,0.00052054,120]
[392716644,1761853848999,-483.04052502,0.00052054,120]
[392716645,1761853849009,-500.0,0.00052054,120]
[392716646,1761853849019,-500.0,0.00052054,120]
[392716647,1761853849028,-500.0,0.00052054,120]
[392716648,1761853849037,-518.14,0.00052054,120]
[392716649,1761853849046,-283.51004135,0.00052054,120]
[392716650,1761853849056,-500.0,0.00052054,120]
[392716651,1761853849065,-500.0,0.00052054,120]
[392716652,1761853849074,-500.0,0.00052054,120]
[392716653,1761853849083,-500.0,0.00052054,120]
[392716654,1761853849093,-500.0,0.00052054,120]
[392716655,1761853849102,-500.0,0.00052054,120]
[392716656,1761853849177,-500.0,0.00052054,120]
[392716657,1761853849186,-602.76,0.00052054,120]
[392716658,1761853849195,-151.0,0.00052054,120]
[392716659,1761853849205,-500.0,0.00052054,120]
[392716660,1761853849214,-500.0,0.00052054,30]
[392716661,1761853849223,-510.61954141,0.00052054,120]
[392716662,1761853849231,-500.0,0.00052054,120]
[392716663,1761853849240,-500.0,0.00052054,120]
[392716664,1761853849249,-554.21,0.00052054,120]
[392716665,1761853849258,-500.0,0.00052054,120]
[392716666,1761853849267,-626.25,0.00052054,120]
[392716667,1761853849275,-500.0,0.00052054,120]
[392716668,1761853849284,-151.0,0.00052054,30]
[392716669,1761853849293,-500.0,0.00052054,120]
[392716670,1761853849303,-500.0,0.00052054,120]
[392716671,1761853849312,-500.0,0.00052054,120]
[392716672,1761853849321,-500.0,0.00052054,120]
[392716673,1761853849331,-500.0,0.00052054,120]
[392716674,1761853849340,-500.0,0.00052054,120]
[392716675,1761853849349,-500.0,0.00052054,120]
[392716676,1761853849358,-500.0,0.00052054,120]
[392716677,1761853849369,-500.0,0.00052054,120]
[392716678,1761853849378,-500.0,0.00052054,120]
[392716679,1761853849387,-480.56085877,0.00052054,120]
[392716680,1761853849396,-521.99272777,0.00052054,120]
[392716681,1761853849406,-500.0,0.00052054,120]
[392716682,1761853849416,-500.0,0.00052054,120]
[392716683,1761853849426,-500.0,0.00052054,120]
[392716684,1761853849438,-500.0,0.00052054,120]
[392716685,1761853849448,-500.0,0.00052054,120]
[392716686,1761853849456,-500.0,0.00052054,120]
[392716687,1761853849466,-500.0,0.00052054,120]
[392716688,1761853849475,-500.0,0.00052054,120]
[392716689,1761853849484,-500.0,0.00052054,120]
[392716690,1761853849494,-500.0,0.00052054,120]
[392716691,1761853849503,-500.0,0.00052054,120]
[392716692,1761853849513,-607.62,0.00052054,120]
[392716693,1761853849522,-368.682964,0.00052054,15]
[392716694,1761853849532,-500.0,0.00052054,120]
[392716695,1761853849542,-368.682964,0.00052054,15]
[392716696,1761853849551,-368.682964,0.00052054,15]
[392716697,1761853849560,-514.18,0.00052054,120]
[392716698,1761853849569,-500.0,0.00052054,120]
[392716699,1761853849579,-368.682964,0.00052054,15]
[392716700,1761853849588,-559.71,0.00052054,120]
[392716701,1761853849597,-500.0,0.00052054,120]
[392716702,1761853849607,-601.44,0.00052054,120]
[392716703,1761853849617,-500.0,0.00052054,120]
[392716704,1761853849627,-500.0,0.00052054,120]
[392716705,1761853849637,-500.0,0.00052054,120]
[392716706,1761853849647,-500.0,0.00052054,120]
[392716707,1761853849656,-500.0,0.00052054,120]
[392716708,1761853849666,-500.0,0.00052054,120]
[392716709,1761853849675,-500.0,0.00052054,120]
[392716710,1761853849684,-151.0,0.00052054,120]
[392716711,1761853849693,-151.0,0.00052054,120]
[392716712,1761853849702,-157.270322,0.00052054,120]
[392716713,1761853849712,-500.0,0.00052054,120]
[392716714,1761853849721,-151.0,0.00052054,120]
[392716715,1761853849730,-500.0,0.00052054,120]
[392716716,1761853849739,-500.0,0.00052054,120]
[392716717,1761853849748,-500.0,0.00052054,120]
[392716718,1761853849758,-500.0,0.00052054,120]
[392716719,1761853849767,-500.0,0.00052054,120]
[392716720,1761853849776,-500.0,0.00052054,120]
[392716721,1761853849785,-500.0,0.00052054,120]
[392716722,1761853849804,-500.0,0.00052054,120]
[392716723,1761853849815,-500.0,0.00052054,120]
[392716724,1761853849824,-500.0,0.00052054,120]
[392716725,1761853849833,-500.0,0.00052054,120]
[392716726,1761853849842,-558.85593709,0.00052054,120]
[392716727,1761853849852,-500.0,0.00052054,120]
[392716728,1761853849862,-151.0,0.00052054,120]
[392716729,1761853849871,-151.0,0.00052054,120]
[392716730,1761853849881,-500.0,0.00052054,120]
[392716731,1761853849891,-238.886963,0.00052054,120]
[392716732,1761853849900,-500.0,0.00052054,120]
[392716733,1761853849909,-500.0,0.00052054,120]
[392716734,1761853849925,-500.0,0.00052054,120]
[392716735,1761853849942,-153.244579,0.00052054,120]
[392716736,1761853849958,-500.0,0.00052054,120]
[392716737,1761853849973,-185.578791,0.00052054,120]
[392716738,1761853849985,-159.471435,0.00052054,120]
[392716739,1761853850000,-500.0,0.00052054,120]
[392716740,1761853850015,-486.945627,0.00052054,120]
[392716741,1761853850028,-486.945627,0.00052054,120]
[392716742,1761853850042,-500.0,0.00052054,120]
[392716743,1761853850057,-486.945627,0.00052054,120]
[392716744,1761853850071,-267.58862565,0.00052054,120]
[392716745,1761853850086,-486.945627,0.00052054,120]
[392716746,1761853850100,-151.0,0.00052054,120]
[392716747,1761853850114,-151.0,0.00052054,120]
[392716748,1761853850130,-254.046152,0.00052054,120]
[392716749,1761853850145,-500.0,0.00052054,120]
[392716750,1761853850159,-151.0,0.00052054,120]
[392716751,1761853850173,-254.046152,0.00052054,120]
[392716752,1761853850185,-254.046152,0.00052054,120]
[392716753,1761853850197,-500.0,0.00052054,120]
[392716754,1761853850209,-254.046152,0.00052054,120]
[392716755,1761853850221,-500.0,0.00052054,120]
[392716756,1761853850233,-151.0,0.00052054,120]
[392716757,1761853850245,-500.0,0.00052054,120]
[392716758,1761853850259,-151.0,0.00052054,120]
[392716759,1761853850272,-500.0,0.00052054,120]
[392716760,1761853850286,-196.977603,0.00052054,120]
[392716761,1761853850300,-500.0,0.00052054,120]
[392716762,1761853850314,-500.0,0.00052054,120]
[392716763,1761853850325,-151.0,0.00052054,120]
[392716764,1761853850336,-500.0,0.00052054,120]
[392716765,1761853850347,-167.028766,0.00052054,120]
[392716766,1761853850359,-500.0,0.00052054,120]
[392716767,1761853850374,-500.0,0.00052054,120]
[392716768,1761853850387,-500.0,0.00052054,120]
[392716769,1761853850399,-500.0,0.00052054,120]
[392716770,1761853850409,-500.0,0.00052054,120]
[392716771,1761853850421,-500.0,0.00052054,120]
[392716772,1761853850437,-165.75476061,0.00052054,120]
[392716773,1761853850449,-500.0,0.00052054,120]
[392716774,1761853850460,-500.0,0.00052054,120]
[392716775,1761853850471,-500.0,0.00052054,120]
[392716776,1761853850482,-500.0,0.00052054,120]
[392716777,1761853850493,-500.0,0.00052054,120]
[392716778,1761853850506,-151.0,0.00052054,120]
[392716779,1761853850517,-500.0,0.00052054,120]
[392716780,1761853850529,-151.0,0.00052054,120]
[392716781,1761853850541,-500.0,0.00052054,120]
[392716782,1761853850553,-500.0,0.00052054,120]
[392716783,1761853850564,-500.0,0.00052054,120]
[392716784,1761853850575,-506.25564702,0.00052054,120]
[392716785,1761853850587,-500.0,0.00052054,120]
[392716786,1761853850598,-500.0,0.00052054,120]
[392716787,1761853850609,-500.0,0.00052054,120]
[392716788,1761853850625,-500.0,0.00052054,120]
[392716789,1761853850637,-500.0,0.00052054,120]
[392716790,1761853850649,-151.0,0.00052054,120]
[392716791,1761853850661,-151.0,0.00052054,120]
[392716792,1761853850672,-151.0,0.00052054,120]
[392716793,1761853850683,-151.0,0.00052054,120]
[392716794,1761853850694,-500.0,0.00052054,120]
[392716795,1761853850706,-151.0,0.00052054,120]
[392716796,1761853850718,-151.0,0.00052054,120]
[392716797,1761853850729,-500.0,0.00052054,120]
[392716798,1761853850740,-500.0,0.00052054,120]
[392716799,1761853850752,-500.0,0.00052054,120]
[392716800,1761853850763,-500.0,0.00052054,120]
[392716801,1761853850773,-500.0,0.00052054,120]
[392716802,1761853850784,-463.81100627,0.00052054,120]
[392716803,1761853850795,-500.0,0.00052054,120]
[392716804,1761853850807,-500.0,0.00052054,120]
[392716805,1761853850818,-500.0,0.00052054,120]
[392716806,1761853850829,-500.0,0.00052054,120]
[392716807,1761853850840,-500.0,0.00052054,120]
[392716808,1761853850852,-500.0,0.00052054,120]
[392716809,1761853850865,-164.22952978,0.00052054,60]
[392716810,1761853850877,-161.155693,0.00052054,120]
[392716811,1761853850889,-500.0,0.00052054,120]
[392716812,1761853850900,-500.0,0.00052054,120]
[392716813,1761853851008,-500.0,0.00052054,120]
[392716814,1761853851022,-500.0,0.00052054,120]
[392716815,1761853851031,-500.0,0.00052054,120]
[392716816,1761853851039,-500.0,0.00052054,120]
[392716817,1761853851048,-151.0,0.00052054,120]
[392716818,1761853851058,-151.0,0.00052054,120]
[392716819,1761853851067,-215.598293,0.00052054,120]
[392716820,1761853851076,-215.598293,0.00052054,120]
[392716821,1761853851084,-500.0,0.00052054,120]
[392716822,1761853851094,-151.0,0.00052054,120]
[392716823,1761853851103,-151.0,0.00052054,120]
[392716824,1761853851112,-215.598293,0.00052054,120]
[392716825,1761853851126,-215.598293,0.00052054,120]
[392716826,1761853851136,-151.0,0.00052054,120]
[392716827,1761853851147,-151.0,0.00052054,120]
[392716828,1761853851157,-215.598293,0.00052054,120]
[392716829,1761853851168,-215.598293,0.00052054,120]
[392716830,1761853851179,-151.0,0.00052054,120]
[392716831,1761853851191,-151.0,0.00052054,120]
[392716832,1761853851203,-215.598293,0.00052054,120]
[392716833,1761853851216,-215.598293,0.00052054,120]
[392716834,1761853851228,-500.0,0.00052054,120]
[392716835,1761853851240,-151.0,0.00052054,120]
[392716836,1761853851251,-500.0,0.00052054,2]
[392716837,1761853851263,-151.0,0.00052054,120]
[392716838,1761853851274,-500.0,0.00052054,120]
[392716839,1761853851285,-500.0,0.00052054,120]
[392716840,1761853851296,-151.258755,0.00052054,120]
[392716841,1761853851306,-151.0,0.00052054,120]
[392716842,1761853851317,-151.0,0.00052054,120]
[392716843,1761853851327,-151.0,0.00052054,120]
[392716844,1761853851337,-290.419958,0.00052054,120]
[392716845,1761853851348,-500.0,0.00052054,120]
[392716846,1761853851359,-500.0,0.00052054,120]
[392716847,1761853851376,-691.089861,0.00052054,120]
[392716848,1761853851387,-500.0,0.00052054,120]
[392716849,1761853851397,-691.089861,0.00052054,120]
[392716850,1761853851407,-691.089861,0.00052054,120]
[392716851,1761853851417,-691.089861,0.00052054,120]
[392716852,1761853851431,-500.0,0.00052054,120]
[392716853,1761853851441,-691.089861,0.00052054,120]
[392716854,1761853851451,-691.089861,0.00052054,120]
[392716855,1761853851460,-500.0,0.00052054,120]
[392716856,1761853851470,-691.089861,0.00052054,120]
[392716857,1761853851480,-691.089861,0.00052054,120]
[392716858,1761853851490,-500.0,0.00052054,120]
[392716859,1761853851500,-500.0,0.00052054,120]
[392716860,1761853851510,-500.0,0.00052054,120]
[392716861,1761853851521,-500.0,0.00052054,7]
[392716862,1761853851531,-151.0,0.00052054,120]
[392716863,1761853851541,-161.857854,0.00052054,120]
[392716864,1761853851551,-410.17368578,0.00052054,120]
[392716865,1761853851561,-300.98465096,0.00052054,120]
[392716866,1761853851571,-500.0,0.00052054,120]
[392716867,1761853851581,-167.94330441,0.00052054,120]
[392716868,1761853851591,-500.0,0.00052054,120]
[392716869,1761853851601,-151.0,0.00052054,120]
[392716870,1761853851611,-151.0,0.00052054,120]
[392716871,1761853851625,-500.0,0.00052054,120]
[392716872,1761853851634,-151.0,0.00052054,120]
[392716873,1761853851644,-151.0,0.00052054,120]
[392716874,1761853851654,-500.0,0.00052054,120]
[392716875,1761853851663,-500.0,0.00052054,120]
[392716876,1761853851673,-500.0,0.00052054,120]
[392716877,1761853851686,-500.0,0.00052054,120]
[392716878,1761853851696,-500.0,0.00052054,120]
[392716879,1761853851706,-500.0,0.00052054,120]
[392716880,1761853851718,-500.0,0.00052054,120]
[392716881,1761853851731,-500.0,0.00052054,120]
[392716882,1761853851742,-500.0,0.00052054,120]
[392716883,1761853851752,-500.0,0.00052054,120]
[392716884,1761853851762,-500.0,0.00052054,120]
[392716885,1761853851772,-500.0,0.00052054,120]
[392716886,1761853851781,-500.0,0.00052054,120]
[392716887,1761853851790,-500.0,0.00052054,120]
[392716888,1761853851800,-532.207954,0.00052054,120]
[392716889,1761853851809,-532.207954,0.00052054,120]
[392716890,1761853851819,-500.0,0.00052054,120]
[392716891,1761853851829,-296.346546,0.00052054,120]
[392716892,1761853851840,-532.207954,0.00052054,120]
[392716893,1761853851850,-296.346546,0.00052054,120]
[392716894,1761853851859,-532.207954,0.00052054,120]
[392716895,1761853851874,-500.0,0.00052054,120]
[392716896,1761853851883,-151.0,0.00052054,120]
[392716897,1761853851893,-151.0,0.00052054,120]
[392716898,1761853851903,-500.0,0.00052054,120]
[392716899,1761853851913,-532.207954,0.00052054,120]
[392716900,1761853851923,-532.207954,0.00052054,120]